{"text_format":"1","workbook":"xlsx","n_sheets":13,"sheets":["1. Forside","2. Samlet prisloft","3. Driftsomkostninger","4. Historiske investeringer","5. Gennemførte investeringer","6. Korrektion investeringer","7. Planlagte investeringer","8. 1-1 omkostninger","9. Miljø- og servicemål","10. Klimatilpasning","11. Nettofinansielle poster","12. Over- eller underdækning","13. Kontrol med indtægtsrammen"],"not_rendered":{"charts":0,"images":0,"macros":1,"external_links":0,"defined_names":0,"comments":0,"pivot_tables":0},"unopened":[],"bounds":{"document_bytes":16777216,"sheet_cells":100000,"rows_first":2000,"rows_last":500,"rows_between":2000,"halvings":0,"cell_chars":16384,"cell_head_chars":4096},"cells_cut":0,"cells_raw":0,"read":"whole","date_system":"1900"}

{"sheet":"1. Forside","index":0,"n_rows":27,"n_cols":4,"rows_kept":27,"cut":false,"hidden":false,"merged":[[21,3,21,5],[20,3,20,5],[19,3,19,5],[18,3,18,5],[7,3,7,5],[12,3,12,5],[15,3,15,5],[16,3,16,5],[17,3,17,5],[26,3,26,5],[25,3,25,5],[24,3,24,5],[23,3,23,5],[22,3,22,5]]}
["HOFOR Spildevand Rødovre A/S"]
[]
[]
[]
[]
[]
[]
[null,null,null,"Bilag A"]
[]
[]
[]
[]
[null,null,null,"Indholdsfortegnelse"]
[]
[]
[null,null,"Fane nr. 2","Samlet prisloft "]
[null,null,"Fane nr. 3","Driftsomkostninger"]
[null,null,"Fane nr. 4","Historiske investeringer "]
[null,null,"Fane nr. 5","Gennemførte investeringer"]
[null,null,"Fane nr. 6","Korrektion investeringer"]
[null,null,"Fane nr. 7","Planlagte investeringer"]
[null,null,"Fane nr. 8","1:1 omkostninger"]
[null,null,"Fane nr. 9","Miljø- og servicemål"]
[null,null,"Fane nr. 10","Klimatilpasning"]
[null,null,"Fane nr. 11","Nettofinansielle poster"]
[null,null,"Fane nr. 12","Over- eller underdækning"]
[null,null,"Fane nr. 13","Kontrol med indtægtsrammen og oversigt over ekstraordinære effektiviseringsgevinster"]

{"sheet":"2. Samlet prisloft","index":1,"n_rows":38,"n_cols":6,"rows_kept":38,"cut":false,"hidden":false,"merged":[[3,1,3,5]]}
[{"$f":"'1. Forside'!A1","v":"HOFOR Spildevand Rødovre A/S"}]
[]
[]
[null,"Fane 2. Samlet prisloft for 2015"]
[]
[null,"Driftsomkostninger"]
[null,"Driftsomkostninger i prisloftet for 2014",{"$f":"'3. Driftsomkostninger'!C21","v":8394491.688557094},"kr."]
[null,"Bortfald af væsentlige omkostninger",{"$f":"-'3. Driftsomkostninger'!C26","v":0},"kr."]
[null,"Korrektion for prisudviklingen 2014-2015",{"$f":"'3. Driftsomkostninger'!C32","v":6715.5933508456756},"kr."]
[null,"Forhøjelse til effektivt niveau iht. benchmarkingen",{"$f":"'3. Driftsomkostninger'!C38","v":0},"kr."]
[null,"Korrektion for generelt effektiviseringskrav",{"$f":"-'3. Driftsomkostninger'!C44","v":-36935.763429651219},"kr."]
[null,"Korrektion for individuelt effektiviseringskrav",{"$f":"-'3. Driftsomkostninger'!C53","v":-419724.58442785474},"kr."]
[null,"Driftsomkostninger i alt",{"$f":"SUM(C7:C12)","v":7944546.9340504343},"kr.",{"$f":"C13","v":7944546.9340504343}," kr."]
[null,"Investeringer"]
[null,"Tillæg for historiske investeringer",{"$f":"'4. Historiske investeringer'!C9","v":11029514.896418445},"kr."]
[null,"Tillæg for gennemførte investeringer i 2011-2013",{"$f":"'5. Gennemførte investeringer'!F20","v":989695.81},"kr."]
[null,"Korrektion af tillæg for planlagte investeringer vedrørende 2013  ",{"$f":"'6. Korrektion investeringer'!C10","v":153528.45999999996},"kr."]
[null,"Tillæg for planlagte investeringer i 2014 og 2015",{"$f":"'7. Planlagte investeringer'!F26","v":1120036},"kr."]
[null,"Investeringstillæg i alt",{"$f":"SUM(C15:C18)","v":13292775.166418444},"kr.",{"$f":"C19","v":13292775.166418444}," kr."]
[null,"Øvrige omkostninger mv."]
[null,"Tillæg for 1:1 omkostninger i 2015",{"$f":"'8. 1-1 omkostninger'!C11","v":15221939},"kr."]
[null,"Tillæg vedr. revisorerklæringer og DANVA/FVD-kontingent",{"$f":"'8. 1-1 omkostninger'!C19","v":55000},"kr."]
[null,"Korrektion ift. faktiske 1:1 omkostninger i 2013",{"$f":"'8. 1-1 omkostninger'!C25","v":-2397081},"kr."]
[null,"Tillæg for driftsomkostninger til miljø- og servicemål i 2015",{"$f":"'9. Miljø- og servicemål'!C9","v":200000},"kr."]
[null,"Korrektion ift. faktiske driftsomkostninger til miljø- og servicemål i 2013",{"$f":"'9. Miljø- og servicemål'!C16","v":0},"kr."]
[null,"Tillæg for driftsomkostninger til medfinansiering af klimatilpasningsprojekter i 2015",{"$f":"'10. Klimatilpasning'!C10","v":594473},"kr."]
[null,"Korrektion ift. faktiske omkostninger til medfinansiering af klimatilpasningsprojekter i 2013",{"$f":"'10. Klimatilpasning'!C17","v":-199000},"kr."]
[null,"Tillæg/fradrag for nettofinansielle poster i 2015",{"$f":"'11. Nettofinansielle poster'!C9","v":79500},"kr."]
[null,"Korrektion ift. faktiske nettofinansielle poster i 2013",{"$f":"'11. Nettofinansielle poster'!C16","v":138891},"kr."]
[null,"Øvrige omkostninger mv. i alt",{"$f":"SUM(C21:C29)","v":13693722},"kr.",{"$f":"C30","v":13693722}," kr."]
[null,"Historisk over- eller underdækning"]
[null,"Tillæg/fradrag for over- eller underdækning til og med 2010",{"$f":"'12. Over- eller underdækning'!C11","v":-1503436.5026455026},"kr.",{"$f":"C32","v":-1503436.5026455026}," kr."]
[null,"Korrektion i forhold til tidligere indtægtsramme "]
[null,"Korrektion for overholdelse af indtægtsramme i prisloft 2013",{"$f":"'13. Kontrol med indtægtsrammen'!E27","v":-4233416.4426589012},"kr.",{"$f":"C34","v":-4233416.4426589012}," kr."]
[null,"Samlet prisloft"]
[null,"Indtægtsramme i 2015 ",null,null,{"$f":"SUM(E13:E34)","v":29194191.155164469}," kr."]
[null,"Debiteret vandmængde i 2013",null,null,1764637," m3"]
[null,"Prisloft 2015",null,null,{"$f":"E36/E37","v":16.544020756203384}," kr./m3"]

{"sheet":"3. Driftsomkostninger","index":2,"n_rows":53,"n_cols":4,"rows_kept":53,"cut":false,"hidden":false,"merged":[[3,1,3,3]]}
[{"$f":"'1. Forside'!A1","v":"HOFOR Spildevand Rødovre A/S"}]
[]
[]
[null,"Fane 3. Driftsomkostninger "]
[]
[null,"Driftsomkostningerne i prisloftet for 2014"]
[null,"Korrigerede driftsomkostninger i prisloftet for 2013 (DOiPL 2013)",7980103.8834162336,"kr."]
[null,"Midlertidigt tillæg iht. § 8, stk. 5",2123054.2880238052,"kr."]
[null,"Prisfremskrivning 1,5 pct.",{"$f":"0.015*SUM(C7:C8)","v":151547.37257160057},"kr."]
[null,"Generelt effektiviseringskrav (0 pct.)",0,"kr."]
[null,"Individuelt effektiviseringskrav ",-131635,"kr."]
[null,"Tillæg iht. § 8, stk. 2, pkt. 1",4689531,"kr."]
[null,"Bortfald af midlertidigt tillæg  iht. § 8, stk. 5 (inkl. prisfremskrivning)",{"$f":"-1.015*2123054","v":-2154899.8099999996},"kr."]
[null,"Driftsomkostningerne i prisloftet for 2014 (DOiPL 2014)\n(korrigeret for bortfald af midlertidigt tillæg)",{"$f":"SUM(C7:C13)","v":12657701.734011639},"kr."]
[]
[]
[null,"Forskel i § 8, stk. 2, pkt. 1 - tillæg"]
[null,"Godkendt tillæg i PL2014 angivet i 2014-niveau",4689531,"kr."]
[null,"Godkendt tillæg i PL2015 angivet i 2014-niveau",426320.95454545459,"kr."]
[null,"Forskel",{"$f":"C19-C18","v":-4263210.0454545449},"kr."]
[null,"Korrigerede driftsomkostninger i prisloftet for 2014",{"$f":"C14+C20","v":8394491.688557094},"kr."]
[]
[]
[null,"Korrektion for forventet bortfald af væsentlige omkostninger"]
[null,"Selskabets indberettede bortfald af væsentlige omkostninger inden 2015",0,"kr."]
[null,"Korrektion for forventet bortfald ",{"$f":"SUM(C25:C25)","v":0},"kr."]
[]
[]
[null,"Korrektion for prisudviklingen fra 2014-2015"]
[null,"Driftsomkostningerne i prisloftet for 2014",{"$f":"C21-C26","v":8394491.688557094},"kr."]
[null,"Prisudvikling 2014 - 2015 ",0.08,"pct."]
[null,"Korrektion for prisudvikling",{"$f":"C30*(C31/100)","v":6715.5933508456756},"kr."]
[]
[]
[null,"Eventuel forhøjelse til effektivt niveau iht. benchmarkingen"]
[null,"Selskabets effektive driftsomkostninger iht. benchmarkingen",4666497.7376717152,"kr."]
[null,"Selskabets pristalskorrigerede driftsomkostninger i 2015-niveau",{"$f":"C30+C32","v":8401207.2819079403},"kr."]
[null,"Eventuel forhøjelse til effektivt niveau",{"$f":"IF(C37>C36,0,C36-C37)","v":0},"kr."]
[]
[]
[null,"Korrektion for generelt effektiviseringskrav"]
[null,"Driftsomkostningerne i prisloftet for 2014",{"$f":"C30","v":8394491.688557094},"kr. "]
[null,"Generelt effektiviseringskrav ",0.44,"pct."]
[null,"Endeligt generelt effektiviseringskrav",{"$f":"C42*(C43/100)","v":36935.763429651219},"kr. "]
[]
[]
[null,"Korrektion for individuelt effektiviseringskrav"]
[null,"Rå effektiviseringspotentiale",4060415.4626943856,"kr."]
[null,"Effektiviseringspotentiale efter eventuel korrektion for særlige forhold",3727993.6055046031,"kr."]
[null,"Effektiviseringspotentiale efter forsigtighedshensyn",2649301.4679064462,"kr."]
[null,"Effektiviseringspotentiale efter eventuel korrektion for sammensætning af signifikante costdrivere",2649301.4679064462,"kr. "]
[null,"Umiddelbart effektiviseringskrav",{"$f":"C51/4","v":662325.36697661155},"kr."]
[null,"Endeligt individuelt effektiviseringskrav",{"$f":"IF(C52>0.05*C30,0.05*C30,IF(C52<0.01*C30,0,C52))","v":419724.58442785474},"kr. "]

{"sheet":"4. Historiske investeringer","index":3,"n_rows":9,"n_cols":4,"rows_kept":9,"cut":false,"hidden":false,"merged":[[3,1,3,2]]}
[{"$f":"'3. Driftsomkostninger'!A1","v":"HOFOR Spildevand Rødovre A/S"}]
[]
[]
[null,"Fane 4. Historiske investeringer "]
[]
[null,"Tillæg for historiske investeringer "]
[null,"Værdi af selskabets materielle anlægsaktiver pr. 1. januar 2010",305975742.87238628,"kr."]
[null,"Den årlige standardafskrivning på de materielle anlægsaktiver iht. POLKA",11029514.896418445,"kr."]
[null,"Tillæg i alt i 2015",{"$f":"C8","v":11029514.896418445},"kr."]

{"sheet":"5. Gennemførte investeringer","index":4,"n_rows":20,"n_cols":7,"rows_kept":20,"cut":false,"hidden":false,"merged":[[3,1,3,5],[6,5,6,6]]}
[{"$f":"'4. Historiske investeringer'!A1","v":"HOFOR Spildevand Rødovre A/S"}]
[]
[]
[null,"Fane 5. Gennemførte investeringer i 2010 - 2013 "]
[]
[null,"Tillæg for gennemførte investeringer i 2013"]
[null," Beskrivelse af investeringen   ","Årstal ","Std. levetid (år)   "," Anskaffelses-pris (kr.)","Afskrivning "]
[null,"Kælder",2013,75,897000,{"$f":"E8/D8","v":11960},"kr."]
[null,"Kælder (< 7 m2)",2013,75,1728072,{"$f":"E9/D9","v":23040.959999999999},"kr."]
[null,"Mindre renseanlæg < 5.000 PE uden mulighed for opdeling",2013,40,572604,14315.1,"kr."]
[null,"Pumpeinstallation Miljøklasse A (1.000-1.500 l/s) - Mek/EL",2013,20,18303,915.15,"kr."]
[null,"Pumpeinstallation Miljøklasse A (300-600 l/s) - Mek/EL",2013,20,1262920,63146,"kr."]
[null,"Pumpeinstallation Miljøklasse B (300-600 l/s) - SRO",2013,10,82000,8200,"kr."]
[null,"Pumpestationer m. overbygning (< 20 m2), Konstruktioner",2013,50,55192,1103.8399999999999,"kr."]
[null,"Pumpestationer m. overbygning (< 20 m2), SRO",2013,10,715754,71575.399999999994,"kr."]
[null,"Strømpeforing Ø 500 mm < Ledningsnet = Ø 800 mm",2013,50,4368524,87370.48,"kr."]
[null,"Oversvømmelseskort",2013,5,191754,38350.800000000003,"kr."]
[null,"Tillæg for 2013 ",null,null,null,{"$f":"SUM(F8:F17)","v":319977.73},"kr."]
[null,"Tillæg for 2010 - 2012",null,null,null,669718.08000000007,"kr."]
[null,"Samlet tillæg for gennemførte investeringer",null,null,null,{"$f":"F18+F19","v":989695.81},"kr."]

{"sheet":"6. Korrektion investeringer","index":5,"n_rows":10,"n_cols":4,"rows_kept":10,"cut":false,"hidden":false,"merged":[[3,1,3,3]]}
[{"$f":"'5. Gennemførte investeringer'!A1","v":"HOFOR Spildevand Rødovre A/S"}]
[]
[]
[null,"Fane 6. Korrektion af tillæg for planlagte investeringer"]
[]
[null,"Korrektion af tillæg for planlagte investeringer vedr. 2013"]
[null,"Tillæg for planlagte investeringer i 2013 i prisloft 2013",356014,"kr."]
[null,"Tillæg for planlagte investeringer i 2013 i prisloft 2014",130413,"kr."]
[null,"Selskabets faktiske afskrivninger på gennemførte investeringer i 2013",{"$f":"'5. Gennemførte investeringer'!F18","v":319977.73},"kr."]
[null,"Korrektion af tillæg for planlagte investeringer vedr. 2013",{"$f":"C9-C7+C9-C8","v":153528.45999999996},"kr."]

{"sheet":"7. Planlagte investeringer","index":6,"n_rows":26,"n_cols":7,"rows_kept":26,"cut":false,"hidden":false,"merged":[[6,5,6,6],[3,1,3,6]]}
[{"$f":"'6. Korrektion investeringer'!A1","v":"HOFOR Spildevand Rødovre A/S"}]
[]
[]
[null,"Fane 7. Planlagte investeringer "]
[]
[null,"Tillæg for planlagte investeringer i 2014 og 2015"]
[null,"Beskrivelse af investeringen   ","Årstal ","Std. levetid (år)   ","Anskaffelses-pris (kr.)   ","Afskrivning"]
[null,"Forsinkelsesbassiner, lukkede med automatisk rensning og SRO Miljøklasse A (500-1.000 m3) - Konstruktioner",2014,75,250000,{"$f":"E8/D8","v":3333.3333333333335},"kr."]
[null,"Overbygning",2014,75,2000000,{"$f":"E9/D9","v":26666.666666666668},"kr."]
[null,"Pumpestationer m. overbygning (< 20 m2), Mek/EL",2014,20,4000000,{"$f":"E10/D10","v":200000},"kr."]
[null,"Pumpestationer m. overbygning (< 20 m2), SRO",2014,10,540000,54000,"kr."]
[null,"Ø 200 mm < Ledningsnet = Ø 500 mm",2014,75,300000,4000,"kr."]
[null,"Ø 500 mm < Ledningsnet = Ø800 mm",2014,75,13045000,173933.33333333334,"kr."]
[null,"Stik",2014,75,200000,2666.6666666666665,"kr."]
[null,"Strømpeforing Ø 200 mm < Ledningsnet = Ø 500 mm",2014,50,3000000,60000,"kr."]
[null,"Forsinkelsesbassiner, lukkede med automatisk rensning og SRO Miljøklasse A (større end 10.000 m3) - Konstruktioner",2015,75,1800000,24000,"kr."]
[null,"Kælder",2015,75,225000,3000,"kr."]
[null,"Ledningsnet > Ø 1600 mm (rørbassiner og transportledninger)",2015,75,11430000,152400,"kr."]
[null,"Pumpeinstallation Miljøklasse B (1.000-1.500 l/s) - Mek/EL",2015,20,6525000,326250,"kr."]
[null,"Pumpeinstallation Miljøklasse B (1.000-1.500 l/s) - SRO",2015,10,9884,988.4,"kr."]
[null,"Stik",2015,75,180000,2400,"kr."]
[null,"GIS Datasystem",2015,5,105300,21060,"kr."]
[null,"Ø 1200 mm < Ledningsnet = Ø 1600 mm",2015,75,4900320,65337.599999999999,"kr."]
[null,"Tillæg for 2014",null,null,null,{"$f":"SUMIF(C8:C23,\"2014\",F8:F23)","v":524600},"kr."]
[null,"Tillæg for 2015",null,null,null,{"$f":"SUMIF(C8:C23,\"2015\",F8:F23)","v":595436},"kr."]
[null,"Tillæg i alt",null,null,null,{"$f":"F24+F25","v":1120036},"kr."]

{"sheet":"8. 1-1 omkostninger","index":7,"n_rows":25,"n_cols":4,"rows_kept":25,"cut":false,"hidden":false,"merged":[[3,1,3,3],[15,1,15,3],[21,1,21,3]]}
[{"$f":"'7. Planlagte investeringer'!A1","v":"HOFOR Spildevand Rødovre A/S"}]
[]
[]
[null,"Fane 8. 1:1 omkostninger"]
[]
[null,"Tillæg for budgetterede 1:1 omkostninger i 2015"]
[null,"Betaling til Forsyningssekretariatet",33000,"kr."]
[null,"Køb af varer og tjenesteydelser hos et andet prisloftreguleret vandselskab",14173939,"kr."]
[null,"Tjenestemandspensioner",15000,"kr."]
[null,"Selskabsskat",1000000,"kr."]
[null,"Tillæg i alt ",{"$f":"SUM(C7:C10)","v":15221939},"kr."]
[]
[]
[]
[]
[null,"Tillæg for budgetterede nødvendige udgifter til revisorerklæringer samt ordinært medlemskab af DANVA og FVD i 2015"]
[null,"Betaling for ordinært medlemskab af DANVA/FVD",40000,"kr."]
[null,"Betaling for revisorerklæringer",15000,"kr."]
[null,"Tillæg i alt ",{"$f":"SUM(C17:C18)","v":55000},"kr."]
[]
[]
[null,"Korrektion af tillæg for faktiske 1:1 omkostninger (inkl. revisorerklæringer og ordinært medlemskab af DANVA/FVD) i 2013"]
[null,"Selskabets faktiske 1:1 omkostninger mv. i 2013, jf. reguleringsregnskabet",13108418,"kr."]
[null,"Tillæg for budgetterede 1:1 omkostninger mv. i prisloft 2013",15505499,"kr."]
[null,"Korrektion af tillæg for budgetterede 1:1 omkostninger mv. i 2013",{"$f":"C23-C24","v":-2397081},"kr."]

{"sheet":"9. Miljø- og servicemål","index":8,"n_rows":16,"n_cols":4,"rows_kept":16,"cut":false,"hidden":false,"merged":[[3,1,3,3]]}
[{"$f":"'8. 1-1 omkostninger'!A1","v":"HOFOR Spildevand Rødovre A/S"}]
[]
[]
[null,"Fane 9. Driftsomkostninger til miljø- og servicemål "]
[]
[null,"Tillæg for budgetterede driftsomkostninger til miljø- og servicemål i 2015"]
[null,"Dokumenteret Spildevandssikkerhed",80000,"kr."]
[null,"Vand- og Energiværksted",120000,"kr."]
[null,"Tillæg i alt",{"$f":"SUM(C7:C8)","v":200000},"kr."]
[]
[]
[]
[null,"Korrektion af tillæg for faktiske driftsomkostninger til miljø- og servicemål i 2013"]
[null,"Selskabets faktiske driftsomkostninger til miljø- og servicemål i 2013, jf. reguleringsregnskabet",0,"kr."]
[null,"Tillæg for budgetterede driftsomkostninger til miljø- og servicemål i prisloft 2013",0,"kr."]
[null,"Korrektion af tillæg for budgetterede driftsomkostninger til miljø- og servicemål i 2013",{"$f":"C14-C15","v":0},"kr."]

{"sheet":"10. Klimatilpasning","index":9,"n_rows":17,"n_cols":4,"rows_kept":17,"cut":false,"hidden":false,"merged":[[3,1,3,3],[13,1,13,3],[6,1,6,3]]}
[{"$f":"'9. Miljø- og servicemål'!A1","v":"HOFOR Spildevand Rødovre A/S"}]
[]
[]
[null,"Fane 10. Medfinansiering af klimatilpasningsprojekter"]
[]
[]
[null,"Tillæg for budgetterede omkostninger til medfinansiering af klimatilpasningsprojekter i 2015"]
[null,"Lørenskogvej (godkendt i PL2013)",209200,"kr."]
[null,"Fortvej (godkendt i PL2014)",385273,"kr."]
[null,"Tillæg i alt",{"$f":" SUM(C8:C9)","v":594473},"kr."]
[]
[]
[]
[null,"Korrektion af tillæg for faktiske omkostninger til medfinansiering af klimatilpasningsprojekter i 2013"]
[null,"Selskabets faktiske driftsomkostninger til klimatilpasningsprojekter i 2013, jf. reguleringsregnskabet",0,"kr."]
[null,"Tillæg for budgetterede driftsomkostninger til klimatilpasningsprojekter i prisloft 2013",199000,"kr."]
[null,"Korrektion af tillæg for budgetterede omkostninger til klimatilpasningsprojekter i 2013",{"$f":"C15-C16","v":-199000},"kr."]

{"sheet":"11. Nettofinansielle poster","index":10,"n_rows":16,"n_cols":4,"rows_kept":16,"cut":false,"hidden":false,"merged":[[3,1,3,3]]}
[{"$f":"'10. Klimatilpasning'!A1","v":"HOFOR Spildevand Rødovre A/S"}]
[]
[]
[null,"Fane 11. Nettofinansielle poster"]
[]
[null,"Tillæg for budgetterede nettofinansielle poster i 2015"]
[null,"Budgetterede renteudgifter og gebyrer i 2015",506500,"kr."]
[null,"Budgetterede renteindtægter i 2015",427000,"kr."]
[null,"Tillæg/fradrag i alt",{"$f":"C7-C8","v":79500},"kr."]
[]
[]
[]
[null,"Korrektion af tillæg for faktiske nettofinansielle poster i 2013"]
[null,"Selskabets faktiske nettofinansielle poster i 2013, jf. reguleringsregnskabet",-237700,"kr."]
[null,"Tillæg for budgetterede nettofinansielle poster i prisloft 2013",-376591,"kr."]
[null,"Korrektion af tillæg for budgetterede nettofinansielle poster i 2013",{"$f":"C14-C15","v":138891},"kr."]

{"sheet":"12. Over- eller underdækning","index":11,"n_rows":11,"n_cols":4,"rows_kept":11,"cut":false,"hidden":false,"merged":[[3,1,3,3]]}
[{"$f":"'11. Nettofinansielle poster'!A1","v":"HOFOR Spildevand Rødovre A/S"}]
[]
[]
[null,"Fane 12. Over- eller underdækning til og med 2010"]
[]
[null,"Tillæg/fradrag for over- eller underdækning til og med 2010"]
[null,"Opgjort over- eller underdækning per 31. december 2010",-15103029,"kr."]
[null,"Heraf beløb indregnet i prislofterne for 2011 - 2014",-6082409.9841269841,"kr."]
[null,"Endnu ikke indregnet over- eller underdækning",{"$f":"C7-C8","v":-9020619.0158730149},"kr."]
[null,"Resterende indregningsperiode (fastsat i prisloftet for 2012)",6,"år"]
[null,"Tillæg/fradrag i alt",{"$f":"IF(C7=0,0,C9/C10)","v":-1503436.5026455026},"kr."]

{"sheet":"13. Kontrol med indtægtsrammen","index":12,"n_rows":38,"n_cols":12,"rows_kept":38,"cut":false,"hidden":false,"merged":[[3,1,3,5],[30,1,30,4],[5,1,5,5]]}
[{"$f":"'12. Over- eller underdækning'!A1","v":"HOFOR Spildevand Rødovre A/S"}]
[]
[]
[null,"Fane 13. Korrektion for overholdelse af indtægtsrammen i prisloftet for 2013"]
[]
[null,"Samlet opgørelse vedrørende overholdelse af indtægtsrammen i prisloftet for 2013"]
[null,"Indtægtsramme i prisloftet for 2013",null,null,38634839.557341099,"kr."]
[null,"Ikke anvendt likviditet vedrørende investeringer i 2013"]
[null,"Tillæg for historiske investeringer ",11029514.896418445,"kr."]
[null,"Tillæg for gennemførte investeringer i 2011",446077,"kr."]
[null,"Korrektion af tillæg for planlagte investeringer i 2011",-38676,"kr."]
[null,"Tillæg for planlagte investeringer i 2012 og 2013",592014,"kr."]
[null,"Indtægter fra tilslutningsbidrag",null,"kr."]
[null,"Indtægter fra salg af anlægsaktiver",null,"kr."]
[null,"Erstatninger vedr. anlægsaktiver mv.",null,"kr."]
[null,"Ekstraordinær effektiviseringsgevinst anvendt til investeringer",null,"kr."]
[null,"Udgifter til investeringer",-12028930,"kr."]
[null,"Ikke anvendt likviditet vedr. investeringer i alt",{"$f":"SUM(C9:C17)","v":-0.10358155518770218},"kr.",{"$f":"IF(C18<0,0,-C18)","v":0},"kr."]
[null,"Ekstraordinære effektiviseringsgevinster anvendt til takstnedsættelse"]
[null,"Ekstraordinær effektiviseringsgevinst anvendt til takstnedsættelse",null,"kr.",{"$f":"-C20","v":0},"kr."]
[null,"Korrektion af ikke opkrævet tillæg fra 2011 i prisloft 2013"]
[null,"Korrektion af ikke opkrævet tillæg fra 2011 i prisloft 2013",null,"kr.",{"$f":"-C22","v":0},"kr."]
[null,"Indtægter fra primære aktiviteter mv."]
[null,"Indtægter fra kubikmetertakster, faste takster, særbidrag, målergebyrer samt andre takster og gebyrer",42868256,"kr."]
[null,"Andre indtægter i prisloftåret, som selskabet har opnået i forbindelse med eller som følge af selskabets primære aktiviteter",null,"kr."]
[null,"Indtægter fra primære aktiviteter mv. i alt",{"$f":"SUM(C24:C25)","v":42868256},"kr.",{"$f":"-C26","v":-42868256},"kr."]
[null,"Tillæg/fradrag i prisloftet for 2015 i alt",null,null,{"$f":"E7+E18+E20+E22+E26","v":-4233416.4426589012},"kr."]
[]
[]
[]
[null,"Oversigt over ekstraordinære effektiviseringsgevinster"]
[]
[null,null,2012,null,2013,null,2014,null,2015,null,2016]
[null,"Indhentet ekstraordinær effektiviseringsgevinst",0,"kr.",1140980,"kr.",null,"kr.",null,"kr.",null,"kr."]
[null,"Gevinst anvendt til investeringer",0,"kr.",0,"kr.",null,"kr.",null,"kr.",null,"kr."]
[null,"Gevinst anvendt til takstnedsættelse",0,"kr.",0,"kr.",null,"kr.",null,"kr.",null,"kr."]
[null,"Korrektion for  effektiviseringsgevinst der ikke er anvendt inden 4 år",0,"kr.",0,"kr.",null,"kr.",null,"kr.",{"$f":"IF(C38>SUM(E35:I36),C38-SUM(E35:I36),0)*-1","v":0},"kr."]
[null,"Resterende gevinst",{"$f":"C34-C35-C36","v":0},"kr.",{"$f":"C38+E34-E35-E36","v":1140980},"kr.",{"$f":"E38+G34-G35-G36","v":1140980},"kr.",{"$f":"G38+I34-I35-I36","v":1140980},"kr.",{"$f":"K34-K35-K36+K37+I38","v":1140980},"kr."]